bitfinex/quotes_BTCUSD_20250601
["timestamp","ask_amount","ask_price","bid_price","bid_amount"]
[1748815400366,0.03539922,105630.0,105620.0,0.69068321]
[1748815400575,0.03539913,105630.0,105620.0,0.67312378]
[1748815400782,0.03539913,105630.0,105620.0,0.65752378]
[1748815401004,0.03539904,105630.0,105620.0,0.65752378]
[1748815401201,0.02593258,105630.0,105620.0,0.66411468]
[1748815401417,0.02593258,105630.0,105620.0,0.65752378]
[1748815401833,0.03539904,105630.0,105620.0,0.64152378]
[1748815402042,0.04486568,105630.0,105620.0,0.65909938]
[1748815402258,0.03539904,105630.0,105620.0,0.64152378]
[1748815402458,0.03539904,105630.0,105620.0,0.6590994]
[1748815402672,0.04486559,105630.0,105620.0,0.64811464]
[1748815402877,0.04486559,105630.0,105620.0,0.67228112]
[1748815403084,0.04486559,105630.0,105620.0,0.64811464]
[1748815403302,0.03539904,105630.0,105620.0,0.64811464]
[1748815403539,0.04486568,105630.0,105620.0,0.64811464]
[1748815403956,0.03539904,105630.0,105620.0,0.64811464]
[1748815404180,0.03539904,105630.0,105620.0,0.65172041]
[1748815404643,0.03539904,105630.0,105620.0,0.65831146]
[1748815404887,0.03539904,105630.0,105620.0,0.68951146]
[1748815405102,0.03539904,105630.0,105620.0,0.68292041]
[1748815405300,0.04486568,105630.0,105620.0,0.7004967]
[1748815405507,0.04486559,105630.0,105620.0,0.68292041]
[1748815405708,0.05433232,105630.0,105620.0,0.68292041]
[1748815405929,0.04486559,105630.0,105620.0,0.68951154]
[1748815406342,0.04486559,105630.0,105620.0,0.68292041]
[1748815406751,0.04486559,105630.0,105620.0,0.68951154]
[1748815406961,0.05433232,105630.0,105620.0,0.68951154]
[1748815407189,0.04486559,105630.0,105620.0,0.68292041]
[1748815407370,0.05433232,105630.0,105620.0,0.70709244]
[1748815407587,0.05433232,105630.0,105620.0,0.68292041]
[1748815408150,0.05433232,105630.0,105620.0,0.70709241]
[1748815408353,0.04486559,105630.0,105620.0,0.68292041]
[1748815408554,0.05433223,105630.0,105620.0,0.68951279]
[1748815408755,0.05433223,105630.0,105620.0,0.68292041]
[1748815409057,0.05433285,105630.0,105620.0,0.65172041]
[1748815409467,0.04486603,105630.0,105620.0,0.65172041]
[1748815409799,0.05433285,105630.0,105620.0,0.65172041]
[1748815409947,0.24367361,105630.0,105620.0,0.34353314]
[1748815410152,0.05433347,105630.0,105620.0,0.64113314]
[1748815410363,0.04486647,105630.0,105620.0,0.65719486]
[1748815410566,0.03539965,105630.0,105620.0,0.65060041]
[1748815410846,0.04486647,105630.0,105620.0,0.69088092]
[1748815411106,0.04486647,105630.0,105620.0,0.67329584]
[1748815411306,0.04486647,105630.0,105620.0,0.67329576]
[1748815411505,0.04486647,105630.0,105620.0,0.68429117]
[1748815411753,0.04486647,105630.0,105620.0,0.67329895]
[1748815411956,0.04486647,105630.0,105620.0,0.69088622]
[1748815413086,0.04486647,105630.0,105620.0,0.69088457]
[1748815413312,0.04486647,105630.0,105620.0,0.6732983]
[1748815413516,0.04486647,105630.0,105620.0,0.66670373]
[1748815413704,0.04486647,105630.0,105620.0,0.68428919]
[1748815413928,0.04486647,105630.0,105620.0,0.66670373]
[1748815414147,0.04486647,105630.0,105620.0,0.1499555]
[1748815414148,0.23420715,105630.0,105620.0,0.1499555]
[1748815414364,0.02593302,105630.0,105620.0,0.62773965]
[1748815414574,0.02593302,105630.0,105620.0,0.65230692]
[1748815414575,0.03539948,105630.0,105620.0,0.65230692]
[1748815414775,0.03539939,105630.0,105620.0,0.66989351]
[1748815414997,0.03539939,105630.0,105620.0,0.65230692]
[1748815415409,0.03539939,105630.0,105620.0,0.66989308]
[1748815415532,0.03539939,105630.0,105620.0,0.65230692]
[1748815416534,0.03539939,105630.0,105620.0,0.66989313]
[1748815416741,0.03539939,105630.0,105620.0,0.65230692]
[1748815416938,0.02593275,105630.0,105620.0,0.65890174]
[1748815417143,0.01646629,105630.0,105620.0,0.65210692]
[1748815417433,0.007,105630.0,105620.0,0.67851043]
[1748815417764,0.007,105630.0,105620.0,0.68510456]
[1748815418010,0.0164662,105630.0,105620.0,0.67851043]
[1748815418210,0.007,105630.0,105620.0,0.67851043]
[1748815418524,0.0164662,105630.0,105620.0,0.6869945]
[1748815418668,0.007,105630.0,105620.0,0.6869945]
[1748815419075,0.0164662,105630.0,105620.0,0.69358863]
[1748815419271,0.0164662,105630.0,105620.0,0.6869945]
[1748815419500,0.007,105630.0,105620.0,0.6869945]
[1748815419900,0.007,105630.0,105620.0,0.69358857]
[1748815420118,0.007,105630.0,105620.0,0.3899145]
[1748815420467,0.007,105630.0,105620.0,0.6871145]
[1748815420796,0.007,105630.0,105620.0,0.69370861]
[1748815421048,0.007,105630.0,105620.0,0.6871145]
[1748815421453,0.007,105630.0,105620.0,0.70469877]
[1748815421678,0.007,105630.0,105620.0,0.6871145]
[1748815422003,0.007,105630.0,105620.0,1.01040754]
[1748815422223,0.007,105630.0,105620.0,1.09697404]
[1748815422456,0.007,105630.0,105620.0,1.12114302]
[1748815422717,0.007,105630.0,105620.0,0.79905093]
[1748815422925,0.003,105630.0,105620.0,0.86147429]
[1748815423351,0.06146222,105640.0,105630.0,0.25024007]
[1748815423567,0.06146222,105640.0,105630.0,0.36727422]
[1748815423781,0.06146222,105640.0,105630.0,0.36727416]
[1748815424008,0.06146222,105640.0,105630.0,0.34969798]
[1748815424216,0.06146222,105640.0,105630.0,0.35628903]
[1748815424432,0.06146222,105640.0,105630.0,0.36727412]
[1748815424645,0.06146222,105640.0,105630.0,0.34969797]
[1748815424857,0.06146222,105640.0,105630.0,0.65380806]
[1748815425078,0.06546222,105640.0,105630.0,0.647217]
[1748815425494,0.06846222,105640.0,105630.0,0.66479315]
[1748815425702,0.06846222,105640.0,105630.0,0.647217]
[1748815425911,0.06846222,105640.0,105630.0,0.65380806]
[1748815426197,0.06846222,105640.0,105630.0,0.647217]
[1748815426416,0.06846222,105640.0,105630.0,0.97411273]
[1748815426628,0.06846222,105640.0,105630.0,0.97411252]
[1748815426833,0.06846222,105640.0,105630.0,0.96752246]
[1748815427069,0.06846222,105640.0,105630.0,0.9741125]
[1748815427293,0.06846222,105640.0,105630.0,0.96752246]
[1748815427511,0.06846222,105640.0,105630.0,0.98509591]
[1748815427722,0.06846222,105640.0,105630.0,0.96752246]
[1748815427723,0.06546222,105640.0,105630.0,0.96752246]
[1748815428343,0.06146222,105640.0,105630.0,0.96752246]
[1748815428971,0.06146222,105640.0,105630.0,0.96751846]
[1748815429619,0.06146222,105640.0,105630.0,0.98509162]
[1748815429834,0.06146222,105640.0,105630.0,0.97410839]
[1748815430056,0.06146222,105640.0,105630.0,0.96695846]
[1748815430293,0.06146222,105640.0,105630.0,0.76397667]
[1748815430502,0.06146222,105640.0,105630.0,0.739813]
[1748815430710,0.06146222,105640.0,105630.0,0.75738412]
[1748815430919,0.06146222,105640.0,105630.0,0.76397329]
[1748815431153,0.06146222,105640.0,105630.0,0.739813]
[1748815431366,0.06146222,105640.0,105630.0,0.75738339]
[1748815431591,0.06146222,105640.0,105630.0,0.739813]
[1748815431800,0.06146222,105640.0,105630.0,0.74640161]
[1748815432026,0.06146222,105640.0,105630.0,0.75738261]
[1748815432233,0.06146222,105640.0,105630.0,0.739813]
[1748815432444,0.06146222,105640.0,105630.0,1.06190137]
[1748815432658,0.06146222,105640.0,105630.0,1.05531275]
[1748815433091,0.06146222,105640.0,105630.0,1.06190137]
[1748815433302,0.06146222,105640.0,105630.0,1.0553102]
[1748815433517,0.06146222,105640.0,105630.0,1.07287985]
[1748815433775,0.06146222,105640.0,105630.0,1.06928359]
[1748815433999,0.06146222,105640.0,105630.0,1.06189843]
[1748815434429,0.06146222,105640.0,105630.0,1.05530989]
[1748815434644,0.06146222,105640.0,105630.0,1.07946741]
[1748815434861,0.06146222,105640.0,105630.0,1.05530989]
[1748815435050,0.06146222,105640.0,105630.0,1.06189828]
[1748815435253,0.06146222,105640.0,105630.0,1.05530989]
[1748815435484,0.06146222,105640.0,105630.0,1.07287893]
[1748815435889,0.06146222,105640.0,105630.0,1.05530989]
[1748815436796,0.06146222,105640.0,105630.0,1.07946608]
[1748815437006,0.06146222,105640.0,105630.0,1.05530989]
[1748815437213,0.06146222,105640.0,105630.0,1.06189794]
[1748815437422,0.06146222,105640.0,105630.0,1.07287802]
[1748815437633,0.06146222,105640.0,105630.0,1.05530989]
[1748815437846,0.06146222,105640.0,105630.0,0.73981014]
[1748815438276,0.06146222,105640.0,105630.0,0.73980922]
[1748815438483,0.06146222,105640.0,105630.0,0.7639654]
[1748815438699,0.06146222,105640.0,105630.0,1.07287684]
[1748815438885,0.06146222,105640.0,105630.0,1.06670229]
[1748815439083,0.06146222,105640.0,105630.0,1.06670221]
[1748815439312,0.06146222,105640.0,105630.0,1.06011468]
[1748815439525,0.06146222,105640.0,105630.0,1.06670216]
[1748815439746,0.06146222,105640.0,105630.0,1.06011468]
[1748815440173,0.06146222,105640.0,105630.0,1.06670209]
[1748815440388,0.06146222,105640.0,105630.0,1.0842685]
[1748815440623,0.06146222,105640.0,105630.0,0.76876875]
[1748815440831,0.06146222,105640.0,105630.0,0.75120234]
[1748815441315,0.06146222,105640.0,105630.0,0.75120197]
[1748815441529,0.06146222,105640.0,105630.0,0.75778937]
[1748815441751,0.06146222,105640.0,105630.0,0.77535578]
[1748815441980,0.06146222,105640.0,105630.0,0.75120197]
[1748815442194,0.06146222,105640.0,105630.0,0.77535579]
[1748815442404,0.06146222,105640.0,105630.0,0.77176131]
[1748815442887,0.06146222,105640.0,105630.0,1.71860699]
[1748815443112,0.06146222,105640.0,105630.0,1.73795338]
[1748815443562,0.06146222,105640.0,105630.0,1.71380128]
[1748815443783,0.06146222,105640.0,105630.0,1.73794346]
[1748815444414,0.06146222,105640.0,105630.0,1.73786318]
[1748815444623,0.06146222,105640.0,105630.0,1.74542549]
[1748815444835,0.06146222,105640.0,105630.0,1.73986316]
[1748815444963,0.06146222,105640.0,105630.0,1.73886316]
[1748815445172,0.06146222,105640.0,105630.0,1.71480128]
[1748815445386,0.06146222,105640.0,105630.0,1.02530617]
[1748815445601,0.06146222,105640.0,105630.0,1.01218153]
[1748815445803,0.06146222,105640.0,105630.0,1.71752128]
[1748815446015,0.06146222,105640.0,105630.0,1.71652128]
[1748815446226,0.06146222,105640.0,105630.0,1.73402089]
[1748815446433,0.06146222,105640.0,105630.0,1.73702107]
[1748815446663,0.06146222,105640.0,105630.0,1.71952128]
[1748815446890,0.06146222,105640.0,105630.0,1.41042385]
[1748815447132,0.06146222,105640.0,105630.0,1.40386153]
[1748815447976,0.06146222,105640.0,105630.0,1.41042415]
[1748815448181,0.06146222,105640.0,105630.0,1.42792449]
[1748815448386,0.06146222,105640.0,105630.0,1.42792846]
[1748815448876,0.06146222,105640.0,105630.0,1.41042812]
[1748815449080,0.06146222,105640.0,105630.0,1.42793903]
[1748815449292,0.06146222,105640.0,105630.0,1.03826766]
[1748815449503,0.06146222,105640.0,105630.0,1.11371047]
[1748815449720,0.06146222,105640.0,105630.0,1.42762766]
[1748815449947,0.06146222,105640.0,105630.0,1.42762931]
[1748815450165,0.06146222,105640.0,105630.0,1.74312906]
[1748815450607,0.06146222,105640.0,105630.0,1.42763423]
[1748815450833,0.06146222,105640.0,105630.0,1.74313397]
[1748815451056,0.06146222,105640.0,105630.0,1.72561201]
[1748815451294,0.06146222,105640.0,105630.0,1.72561171]
[1748815451505,0.06146222,105640.0,105630.0,1.74313606]
[1748815451979,0.00334846,105650.0,105640.0,0.25071947]
[1748815452203,0.00334846,105650.0,105640.0,0.37066301]
[1748815452418,0.00334846,105650.0,105640.0,1.3253292]
[1748815452647,0.00334846,105650.0,105640.0,1.3253279]
[1748815452861,0.00334846,105650.0,105640.0,1.30781127]
[1748815453097,0.00334846,105650.0,105640.0,1.32832771]
[1748815453321,0.0357462,105680.0,105670.0,0.24895765]
[1748815453542,0.03589126,105680.0,105670.0,1.32609828]
[1748815453767,0.03089126,105680.0,105670.0,1.32605705]
[1748815454199,0.03089126,105680.0,105670.0,1.3405979]
[1748815454439,0.03089126,105680.0,105670.0,1.31832574]
[1748815454650,0.03089126,105680.0,105670.0,1.33579975]
[1748815455115,0.03089126,105680.0,105670.0,1.33579795]
[1748815455336,0.03089126,105680.0,105670.0,1.34082426]
[1748815455585,0.02332463,105680.0,105670.0,1.34877618]
[1748815455819,0.02332463,105680.0,105670.0,1.34977618]
[1748815456046,0.015758,105680.0,105670.0,1.32579889]
[1748815456258,0.015758,105680.0,105670.0,1.39977191]
[1748815456480,0.015758,105680.0,105670.0,1.39423295]
[1748815456481,0.00819137,105680.0,105670.0,1.39423295]
[1748815456706,0.00819137,105680.0,105670.0,1.4007707]
[1748815456955,0.00819137,105680.0,105670.0,1.41914986]
[1748815457176,0.00819137,105680.0,105670.0,1.07975829]
[1748815457418,0.00819137,105680.0,105670.0,1.39525804]
[1748815457645,0.00819137,105680.0,105670.0,1.4372353]
[1748815457883,0.00819137,105680.0,105670.0,1.42913961]
[1748815458090,0.00819137,105680.0,105670.0,1.01467876]
[1748815458313,0.00819137,105680.0,105670.0,1.10763876]
[1748815458532,0.00819137,105680.0,105670.0,1.42857941]
[1748815458758,0.00819137,105680.0,105670.0,0.41149829]
[1748815458983,0.00819137,105680.0,105670.0,0.70833829]
[1748815459198,0.00819137,105680.0,105670.0,0.63278742]
[1748815459408,0.00819137,105680.0,105670.0,0.62469949]
[1748815459855,0.00819137,105680.0,105670.0,0.35189187]
[1748815460063,0.00819137,105680.0,105670.0,0.64207128]
[1748815460282,0.00819137,105680.0,105670.0,0.63116375]
[1748815460491,0.00819137,105680.0,105670.0,0.35189522]
[1748815460700,0.00819137,105680.0,105670.0,0.63108387]
[1748815460938,0.00819137,105680.0,105670.0,0.6310839]
[1748815461147,0.00819137,105680.0,105670.0,0.62453959]
[1748815461357,0.00819137,105680.0,105670.0,0.63060397]
[1748815461577,0.00819137,105680.0,105670.0,0.62405959]
[1748815461808,0.01765318,105680.0,105670.0,0.62305959]
[1748815462107,0.01765318,105680.0,105670.0,0.34335458]
[1748815462322,0.02711517,105680.0,105670.0,0.64051498]
[1748815462523,0.02711517,105680.0,105670.0,0.32589959]
[1748815462737,0.04301517,105680.0,105670.0,0.62297959]
[1748815462939,0.04301517,105680.0,105670.0,0.64698009]
[1748815463150,0.02811517,105680.0,105670.0,0.62293959]
[1748815463354,0.01865318,105680.0,105670.0,0.64693984]
[1748815463762,0.00919137,105680.0,105670.0,0.64694498]
[1748815463979,0.22682843,105680.0,105670.0,0.34044442]
[1748815464191,0.03757778,105680.0,105670.0,0.64682724]
[1748815464397,0.03757778,105680.0,105670.0,0.62936742]
[1748815464619,0.03757778,105680.0,105670.0,0.62281978]
[1748815464822,0.03757778,105680.0,105670.0,0.64682767]
[1748815465031,0.06244021,105680.0,105670.0,0.62269987]
[1748815465239,0.06244021,105680.0,105670.0,0.62924754]
[1748815465462,0.06244021,105680.0,105670.0,0.63216266]
[1748815465675,0.26115329,105680.0,105670.0,0.61327681]
[1748815465912,0.06244021,105680.0,105670.0,0.63584002]
[1748815466139,0.07874021,105680.0,105670.0,0.33244981]
[1748815466365,0.06927778,105680.0,105670.0,0.6358401]
[1748815466587,0.06927778,105680.0,105670.0,0.64675726]
[1748815466999,0.06927778,105680.0,105670.0,0.67077593]
[1748815467206,0.06927778,105680.0,105670.0,0.64667726]
[1748815467428,0.06927778,105680.0,105670.0,0.66414488]
[1748815467638,0.06927778,105680.0,105670.0,0.66414465]
[1748815467865,0.06927778,105680.0,105670.0,0.67069536]
[1748815468084,0.06927778,105680.0,105670.0,0.37393536]
[1748815468296,0.06927778,105680.0,105670.0,0.67057538]
[1748815468531,0.02811535,105680.0,105670.0,0.67057566]
[1748815468767,0.0375776,105680.0,105670.0,0.67057566]
[1748815468986,0.0375776,105680.0,105670.0,0.67057443]
[1748815469491,0.00919137,105680.0,105670.0,0.64655742]
[1748815469701,0.00919137,105680.0,105670.0,0.67057963]
[1748815469918,0.00919137,105680.0,105670.0,0.67058001]
[1748815470551,0.00919137,105680.0,105670.0,0.64655742]
[1748815470761,0.00919137,105680.0,105670.0,0.6531099]
[1748815470970,0.00919137,105680.0,105670.0,0.67058318]
[1748815471404,0.00919137,105680.0,105670.0,0.6549999]
[1748815471615,0.00919137,105680.0,105670.0,0.67247326]
[1748815472043,0.00919137,105680.0,105670.0,0.37583326]
[1748815472247,0.00919137,105680.0,105670.0,0.67239326]
[1748815472248,0.01865309,105680.0,105670.0,0.67239326]
[1748815472492,0.01865309,105680.0,105670.0,0.67240757]
[1748815472704,0.01865309,105680.0,105670.0,0.67241259]
[1748815472914,0.00919137,105680.0,105670.0,0.67241251]
[1748815473131,0.01865309,105680.0,105670.0,0.67241263]
[1748815473348,0.01865309,105680.0,105670.0,0.67241275]
[1748815473783,0.01865309,105680.0,105670.0,0.66585491]
[1748815474019,0.01865309,105680.0,105670.0,0.67241369]
[1748815474235,0.00919137,105680.0,105670.0,0.67241369]
[1748815474454,0.01865327,105680.0,105670.0,0.67241369]
[1748815474675,0.00919137,105680.0,105670.0,0.67241369]
[1748815474909,0.00919137,105680.0,105670.0,0.67241966]
[1748815475346,0.01865309,105680.0,105670.0,0.37585969]
[1748815475567,0.01865309,105680.0,105670.0,0.67213969]
[1748815475789,0.00919137,105680.0,105670.0,0.67213969]
[1748815476475,0.01865309,105680.0,105670.0,0.67214487]
[1748815476691,0.01865309,105680.0,105670.0,0.67214457]
[1748815476901,0.01865309,105680.0,105670.0,0.67214455]
[1748815477127,0.01865309,105680.0,105670.0,0.67214451]
[1748815477347,0.01865309,105680.0,105670.0,0.67214423]
[1748815477557,0.00919137,105680.0,105670.0,0.64808733]
[1748815478196,0.00919137,105680.0,105670.0,0.66418733]
[1748815478405,0.00919137,105680.0,105670.0,0.67074762]
[1748815478620,0.00919137,105680.0,105670.0,0.68824217]
[1748815478847,0.00919137,105680.0,105670.0,0.67074762]
[1748815479065,0.00919137,105680.0,105670.0,0.68604762]
[1748815479496,0.00919137,105680.0,105670.0,0.69260768]
[1748815479936,0.00919137,105680.0,105670.0,0.69916743]
[1748815480178,0.00919137,105680.0,105670.0,0.69260768]
[1748815480407,0.00919137,105680.0,105670.0,1.15766359]
[1748815480616,0.00919137,105680.0,105670.0,1.16422226]
[1748815480825,0.00919137,105680.0,105670.0,1.17515448]
[1748815481038,0.00919137,105680.0,105670.0,1.17515444]
[1748815481280,0.00919137,105680.0,105670.0,1.16422207]
[1748815481491,0.00919137,105680.0,105670.0,1.15766259]
[1748815481737,0.00919137,105680.0,105670.0,1.16422269]
[1748815481956,0.00919137,105680.0,105670.0,1.18171609]
[1748815482169,0.00919137,105680.0,105670.0,1.16422215]
[1748815482387,0.00919137,105680.0,105670.0,1.15766213]
[1748815482859,0.00919137,105680.0,105670.0,1.19920854]
[1748815483107,0.00919137,105680.0,105670.0,1.2057689]
[1748815483535,0.00919137,105680.0,105670.0,1.18171528]
[1748815483751,0.00919137,105680.0,105670.0,0.88543528]
[1748815483973,0.00919137,105680.0,105670.0,1.18107528]
[1748815485089,0.00919137,105680.0,105670.0,1.26763541]
[1748815485298,0.00919137,105680.0,105670.0,1.27419551]
[1748815485529,0.00919137,105680.0,105670.0,1.28515109]
[1748815485752,0.00919137,105680.0,105670.0,1.26763541]
[1748815485940,0.00919137,105680.0,105670.0,1.27420386]
[1748815486168,0.00919137,105680.0,105670.0,1.26763541]
[1748815486385,0.00919137,105680.0,105670.0,1.2676354]
[1748815486597,0.00919137,105680.0,105670.0,1.28515152]
[1748815486819,0.00919137,105680.0,105670.0,1.2676354]
[1748815487021,0.00919137,105680.0,105670.0,1.29171969]
[1748815487446,0.00919137,105680.0,105670.0,1.29131969]
[1748815487684,0.00919137,105680.0,105670.0,1.29132019]
[1748815487900,0.00919137,105680.0,105670.0,1.29132034]
[1748815488106,0.00919137,105680.0,105670.0,1.29132032]
[1748815488315,0.00919137,105680.0,105670.0,1.29132005]
[1748815488531,0.00919137,105680.0,105670.0,0.99608003]
[1748815488757,0.00919137,105680.0,105670.0,1.25983626]
[1748815489425,0.00919137,105680.0,105670.0,1.2357554]
[1748815489641,0.00919137,105680.0,105670.0,0.91971394]
[1748815489852,0.00919137,105680.0,105670.0,0.60716272]
[1748815490062,0.00919137,105680.0,105670.0,0.90220299]
[1748815490279,0.00919137,105680.0,105670.0,0.91314893]
[1748815490482,0.00919137,105680.0,105670.0,0.91971651]
[1748815490692,0.00919137,105680.0,105670.0,0.61810907]
[1748815490920,0.00919137,105680.0,105670.0,0.91963662]
[1748815491137,0.00919137,105680.0,105670.0,0.91963664]
[1748815491591,0.00919137,105680.0,105670.0,0.91963637]
[1748815491797,0.00919137,105680.0,105670.0,0.92620315]
[1748815492227,0.00919137,105680.0,105670.0,0.9196358]
[1748815492442,0.00919137,105680.0,105670.0,0.92620315]
[1748815492707,0.00919137,105680.0,105670.0,0.92620416]
[1748815492928,0.00919137,105680.0,105670.0,0.92620461]
[1748815493137,0.00919137,105680.0,105670.0,0.91963621]
[1748815493371,0.01865309,105680.0,105670.0,0.63124374]
[1748815493580,0.00919137,105680.0,105670.0,0.63124382]
[1748815493809,0.01865318,105680.0,105670.0,0.63124561]
[1748815494029,0.0783395,105680.0,105670.0,0.6378185]
[1748815494242,0.0783395,105680.0,105670.0,0.93257968]
[1748815494449,0.06887716,105680.0,105670.0,0.92601074]
[1748815494667,0.06887716,105680.0,105670.0,0.90849133]
[1748815494879,0.05941508,105680.0,105670.0,0.93258054]
[1748815495096,0.06887707,105680.0,105670.0,0.93258047]
[1748815495317,0.06887707,105680.0,105670.0,0.93258042]
[1748815495531,0.05941508,105680.0,105670.0,0.93257984]
[1748815496398,0.05941508,105680.0,105670.0,0.91506079]
[1748815496617,0.05941508,105680.0,105670.0,0.90849133]
[1748815496829,0.04995318,105680.0,105670.0,0.90849133]
[1748815497057,0.05941508,105680.0,105670.0,0.90849133]
[1748815497711,0.04995318,105680.0,105670.0,0.90849133]
[1748815497926,0.05941508,105680.0,105670.0,0.91506092]
[1748815498141,0.05941508,105680.0,105670.0,0.90849133]
[1748815498357,0.05941508,105680.0,105670.0,0.91506092]
[1748815498575,0.05941508,105680.0,105670.0,0.90849133]
[1748815498784,0.04995318,105680.0,105670.0,0.90849133]
[1748815499641,0.04995318,105680.0,105670.0,0.90849174]
[1748815500083,0.04995318,105680.0,105670.0,0.9255702]
[1748815500351,0.04995318,105680.0,105670.0,0.92556901]
[1748815500559,0.04995309,105680.0,105670.0,0.90805174]
[1748815500991,0.04995318,105680.0,105670.0,0.90805174]
[1748815501208,0.04995318,105680.0,105670.0,0.91462074]
[1748815501423,0.04995318,105680.0,105670.0,0.90805174]
[1748815501633,0.05941517,105680.0,105670.0,0.90805174]
[1748815501850,0.05941517,105680.0,105670.0,0.91462029]
[1748815502072,0.09288062,105680.0,105670.0,0.9079321]
[1748815502298,0.09288044,105680.0,105670.0,0.91739489]
[1748815502511,0.08341827,105680.0,105670.0,0.62976408]
[1748815502736,0.09288061,105680.0,105670.0,0.91775502]
[1748815502958,0.10234322,105680.0,105670.0,0.90869232]
[1748815503180,0.10234322,105680.0,105670.0,0.9181552]
[1748815503399,0.27266998,105680.0,105670.0,0.48948848]
[1748815503610,0.27266998,105680.0,105670.0,0.80086732]
[1748815503822,0.27266998,105680.0,105670.0,0.81033029]
[1748815504260,0.27266998,105680.0,105670.0,0.8278488]
[1748815504713,0.08341942,105680.0,105670.0,0.83731137]
[1748815504933,0.36530998,105680.0,105670.0,0.29719246]
[1748815505159,0.69584773,105680.0,105670.0,0.31471239]
[1748815505380,0.69584773,105680.0,105670.0,0.20783187]
[1748815505626,0.69584773,105680.0,105670.0,0.2076051]
[1748815506059,0.69484773,105680.0,105670.0,0.2076051]
[1748815506491,0.69584773,105680.0,105670.0,0.2076051]
[1748815507430,1.13775951,105680.0,105640.0,0.19589131]
[1748815507643,1.13775951,105680.0,105640.0,0.32110122]
[1748815507644,0.25467512,105650.0,105640.0,0.32110122]
[1748815507871,0.25467512,105650.0,105640.0,0.52865624]
[1748815507872,0.34687512,105650.0,105640.0,0.52865624]
[1748815508077,0.34687512,105650.0,105640.0,0.24252312]
[1748815508564,0.34687512,105650.0,105640.0,0.24252343]
[1748815508776,0.35351461,105650.0,105640.0,0.24252344]
[1748815509216,0.34687512,105650.0,105640.0,0.52923521]
[1748815509667,0.34687512,105650.0,105640.0,0.53870096]
[1748815510087,0.34687512,105650.0,105640.0,0.52923521]
[1748815510758,0.34687512,105650.0,105640.0,0.53870096]
[1748815510981,0.05590561,105650.0,105640.0,0.63455463]
[1748815511189,0.04293558,105650.0,105640.0,0.63455463]
[1748815511394,0.05240016,105650.0,105640.0,0.62320763]
[1748815511993,0.06186537,105650.0,105640.0,0.62320763]
[1748815512862,0.06186537,105650.0,105640.0,0.62320781]
[1748815513109,0.06186537,105650.0,105640.0,0.62798527]
[1748815513903,0.05240079,105650.0,105640.0,0.62798527]
[1748815514412,0.23224033,105650.0,105640.0,0.6185197]
[1748815514653,0.23877548,105650.0,105640.0,0.60905404]
[1748815514879,0.23877548,105650.0,105630.0,0.2148611]
[1748815515103,0.22932909,105640.0,105630.0,0.10244171]
[1748815515327,0.24452909,105640.0,105630.0,0.39784171]
[1748815515543,0.25399484,105640.0,105630.0,0.59664867]
[1748815515724,0.26346095,105640.0,105630.0,0.59664867]
[1748815516208,0.26346095,105640.0,105630.0,0.59764867]
[1748815517270,0.26346095,105640.0,105630.0,0.59664867]
[1748815517482,0.26214095,105640.0,105630.0,0.59664867]
[1748815517697,0.2526752,105640.0,105630.0,0.59664867]
[1748815519174,0.2526752,105640.0,105630.0,0.59640867]
[1748815519646,0.2526752,105640.0,105630.0,0.39760171]
[1748815519855,0.2526752,105640.0,105630.0,0.39816171]
[1748815520306,0.2526752,105640.0,105630.0,0.6064354]
[1748815520528,0.06335262,105640.0,105630.0,0.61590186]
[1748815520743,0.07281873,105640.0,105630.0,0.32018186]
[1748815520945,0.07281873,105640.0,105630.0,0.61586186]
[1748815522249,0.07281873,105640.0,105630.0,0.32018186]
[1748815522467,0.26214095,105640.0,105630.0,0.3107154]
[1748815522683,0.26214095,105640.0,105630.0,0.10658741]
[1748815522903,0.2526752,105640.0,105630.0,0.40226741]
[1748815523806,0.2526752,105640.0,105630.0,0.10658741]
[1748815524015,0.29999401,105640.0,105630.0,0.08568543]
[1748815524235,0.2526752,105640.0,105630.0,0.07744243]
[1748815524673,0.2526752,105640.0,105630.0,0.0561474]
[1748815524857,0.2526752,105640.0,105630.0,0.02952154]
[1748815525058,0.2526752,105640.0,105630.0,0.00290514]
[1748815525487,0.20827351,105630.0,105620.0,0.50011928]
[1748815525695,0.03786639,105630.0,105620.0,0.61490821]
[1748815525946,0.03786639,105630.0,105620.0,0.66672696]
[1748815526151,0.04733339,105630.0,105620.0,0.61916]
[1748815526362,0.04733339,105630.0,105620.0,0.57109518]
[1748815526363,0.22720724,105630.0,105620.0,0.57109518]
[1748815526573,0.22720724,105630.0,105620.0,0.57109677]
[1748815526794,0.23382903,105630.0,105620.0,0.57209677]
[1748815526997,0.23385179,105630.0,105620.0,0.51351487]
[1748815527200,0.02557774,105630.0,105620.0,0.71230713]
[1748815527408,0.03504456,105630.0,105620.0,0.7217744]
[1748815527611,0.03504456,105630.0,105620.0,0.71299788]
[1748815527816,0.03504456,105630.0,105620.0,0.72277439]
[1748815528287,0.02840001,105630.0,105620.0,0.71399788]
[1748815528484,0.03504464,105630.0,105620.0,0.71143212]
[1748815528716,0.03504464,105630.0,105620.0,0.71143198]
[1748815528923,0.03504464,105630.0,105620.0,0.67170309]
[1748815529333,0.03504464,105630.0,105620.0,0.62753339]
[1748815529539,0.02557783,105630.0,105620.0,0.63700127]
[1748815529748,0.01893319,105630.0,105620.0,0.71277481]
[1748815529957,0.02557787,105630.0,105620.0,0.71277481]
[1748815530588,0.01893319,105630.0,105620.0,0.41685496]
[1748815530794,0.03504409,105630.0,105620.0,0.70399796]
[1748815530994,0.03504409,105630.0,105620.0,0.71277496]
[1748815531322,0.044511,105630.0,105620.0,0.71277496]
[1748815531539,0.03504409,105630.0,105620.0,0.81277496]
[1748815531945,0.03504409,105630.0,105620.0,0.51685485]
[1748815532146,0.04168897,105630.0,105620.0,0.80391796]
[1748815532371,0.04168894,105630.0,105620.0,0.80391796]
[1748815532572,0.06524411,105630.0,105620.0,0.50807796]
[1748815532775,0.35189926,105630.0,105620.0,0.182]
[1748815532998,0.69189926,105630.0,105620.0,0.11146772]
[1748815533240,0.69189926,105630.0,105620.0,0.30082579]
[1748815533241,0.69854475,105630.0,105620.0,0.30082579]
[1748815533472,0.69854482,105630.0,105620.0,0.30082579]
[1748815533638,0.69189926,105630.0,105620.0,0.29982579]
[1748815533848,0.69854489,105630.0,105620.0,0.29913832]
[1748815534009,0.69189926,105630.0,105620.0,0.30760628]
[1748815534205,0.70348469,105630.0,105620.0,0.1]
[1748815534434,0.70958127,105630.0,105620.0,0.30760628]
[1748815534670,0.69401453,105630.0,105620.0,0.11824357]
[1748815534864,0.68454773,105630.0,105620.0,0.11824361]
[1748815535041,0.68454773,105630.0,105620.0,0.10877571]
[1748815535391,0.68454773,105630.0,105620.0,0.1]
[1748815535392,0.67790561,105630.0,105620.0,0.1]
[1748815535592,0.77041683,105630.0,105620.0,0.10877795]
[1748815535714,0.77705957,105630.0,105620.0,0.1]
[1748815536076,0.77041683,105630.0,105620.0,0.1]
[1748815536278,0.77041683,105630.0,105620.0,0.10877849]
[1748815536420,0.77041683,105630.0,105620.0,0.1]
[1748815536421,0.67790561,105630.0,105620.0,0.1]
[1748815536620,0.58566561,105630.0,105620.0,0.1]